[Event "Titled Tuesday Blitz May 31 Early 2022"]
[White "Sankalan Shah"]
[Black "Devaev, Alexander"]
[WhiteFideId "25600362"]
[BlackFideId "4169395"]
[WhiteElo "1648"]
[BlackElo "2185"]
[Result "0-1"]
[Round "02"]
[TimeControl "180+1"]
[Date "2022.06.01"]
[WhiteClock "0:00:14"]
[BlackClock "0:00:22"]

1. d4 {[%clk 0:03:00]}  Nf6 {[%clk 0:02:58]} 2. c4 {[%clk 0:03:00]}  e6 {[%clk 0:02:59]} 3. Nc3 {[%clk 0:03:00]}  Bb4 {[%clk 0:02:59]} 4. e3 {[%clk 0:02:58]}  c5 {[%clk 0:03:00]} 5. Bd2 {[%clk 0:02:56]}  cxd4 {[%clk 0:02:58]} 6. exd4 {[%clk 0:02:56]}  d5 {[%clk 0:02:59]} 7. a3 {[%clk 0:02:55]}  Bxc3 {[%clk 0:02:59]} 8. Bxc3 {[%clk 0:02:56]}  Nc6 {[%clk 0:03:00]} 9. Nf3 {[%clk 0:02:54]}  O-O {[%clk 0:02:58]} 10. c5 {[%clk 0:02:40]}  Ne4 {[%clk 0:02:57]} 11. Bd3 {[%clk 0:02:37]}  Nxc3 {[%clk 0:02:57]} 12. bxc3 {[%clk 0:02:37]}  b6 {[%clk 0:02:58]} 13. Bb5 {[%clk 0:02:28]}  Bd7 {[%clk 0:02:57]} 14. cxb6 {[%clk 0:02:13]}  Qxb6 {[%clk 0:02:56]} 15. a4 {[%clk 0:02:06]}  Rfc8 {[%clk 0:02:37]} 16. O-O {[%clk 0:02:03]}  Nb8 {[%clk 0:02:37]} 17. Rb1 {[%clk 0:01:46]}  Bxb5 {[%clk 0:02:33]} 18. Rxb5 {[%clk 0:01:47]}  Qa6 {[%clk 0:02:29]} 19. Qb3 {[%clk 0:01:44]}  Nc6 {[%clk 0:02:28]} 20. Rb1 {[%clk 0:01:39]}  h6 {[%clk 0:02:28]} 21. h3 {[%clk 0:01:39]}  Na5 {[%clk 0:02:24]} 22. Qb4 {[%clk 0:01:32]}  Nc4 {[%clk 0:02:24]} 23. Rb7 {[%clk 0:01:20]}  Nd6 {[%clk 0:01:18]} 24. Rd7 {[%clk 0:01:17]}  Rd8 {[%clk 0:01:18]} 25. Ne5 {[%clk 0:00:53]}  Rxd7 {[%clk 0:01:18]} 26. Nxd7 {[%clk 0:00:53]}  Ne4 {[%clk 0:01:10]} 27. Qe7 {[%clk 0:00:25]}  Qd6 {[%clk 0:00:59]} 28. Qxd6 {[%clk 0:00:21]}  Nxd6 {[%clk 0:00:59]} 29. Nc5 {[%clk 0:00:20]}  Rc8 {[%clk 0:00:55]} 30. a5 {[%clk 0:00:20]}  Kf8 {[%clk 0:00:49]} 31. a6 {[%clk 0:00:20]}  Ke7 {[%clk 0:00:49]} 32. Kf1 {[%clk 0:00:21]}  Rc7 {[%clk 0:00:48]} 33. Ke2 {[%clk 0:00:20]}  f6 {[%clk 0:00:49]} 34. Kd3 {[%clk 0:00:20]}  e5 {[%clk 0:00:43]} 35. f3 {[%clk 0:00:20]}  g5 {[%clk 0:00:40]} 36. Re1 {[%clk 0:00:20]}  Nc4 {[%clk 0:00:37]} 37. Rb1 {[%clk 0:00:18]}  Na5 {[%clk 0:00:29]} 38. Rb5 {[%clk 0:00:18]}  Nc6 {[%clk 0:00:26]} 39. Rb7 {[%clk 0:00:18]}  Kd6 {[%clk 0:00:27]} 40. g4 {[%clk 0:00:14]}  Nd8 {[%clk 0:00:22]} 41. Rb8 {[%clk 0:00:14]}  Ne6 {[%clk 0:00:20]} 42. Rf8 {[%clk 0:00:13]}  Nxc5+ {[%clk 0:00:19]} 43. dxc5+ {[%clk 0:00:13]}  Kxc5 {[%clk 0:00:20]} 44. Rxf6 {[%clk 0:00:13]}  Rc6 {[%clk 0:00:21]} 45. Rf7 {[%clk 0:00:13]}  Rxa6 {[%clk 0:00:20]} 46. Rh7 {[%clk 0:00:13]}  Kb5 {[%clk 0:00:19]} 47. Rb7+ {[%clk 0:00:13]}  Ka4 {[%clk 0:00:18]} 48. Rd7 {[%clk 0:00:12]}  Ra5 {[%clk 0:00:18]} 49. c4 {[%clk 0:00:12]}  dxc4+ {[%clk 0:00:18]} 50. Kxc4 {[%clk 0:00:13]}  Ka3 {[%clk 0:00:18]} 51. Rd6 {[%clk 0:00:11]}  Ra4+ {[%clk 0:00:14]} 52. Kd5 {[%clk 0:00:11]}  Rf4 {[%clk 0:00:15]} 53. Kxe5 {[%clk 0:00:11]}  Rxf3 {[%clk 0:00:15]} 54. Rxh6 {[%clk 0:00:11]}  Kb2 {[%clk 0:00:16]} 55. Ra6 {[%clk 0:00:10]}  Ra3 {[%clk 0:00:16]} 56. Rg6 {[%clk 0:00:10]}  Rb3 {[%clk 0:00:15]} 57. Ra6 {[%clk 0:00:09]}  Ra3 {[%clk 0:00:15]} 58. Rg6 {[%clk 0:00:08]}  Kc3 {[%clk 0:00:13]} 59. Kf5 {[%clk 0:00:08]}  Ra5+ {[%clk 0:00:13]} 60. Kf6 {[%clk 0:00:08]}  Ra6+ {[%clk 0:00:13]} 61. Kg7 {[%clk 0:00:08]}  Rxg6+ {[%clk 0:00:14]} 62. Kxg6 {[%clk 0:00:09]}  a5 {[%clk 0:00:15]} 63. Kxg5 {[%clk 0:00:10]}  a4 {[%clk 0:00:16]} 64. h4 {[%clk 0:00:11]}  a3 {[%clk 0:00:17]} 65. h5 {[%clk 0:00:12]}  a2 {[%clk 0:00:18]} 66. Kg6 {[%clk 0:00:13]}  a1=Q {[%clk 0:00:19]} 67. h6 {[%clk 0:00:13]}  Qa6+ {[%clk 0:00:19]} 68. Kg7 {[%clk 0:00:14]}  Qb7+ {[%clk 0:00:19]} 69. Kg6 {[%clk 0:00:13]}  Qc6+ {[%clk 0:00:20]} 70. Kh5 {[%clk 0:00:14]}  Qh1+ {[%clk 0:00:18]} 71. Kg6 {[%clk 0:00:14]}  Qe4+ {[%clk 0:00:19]} 72. Kg7 {[%clk 0:00:13]}  Qxg4+ {[%clk 0:00:19]} 73. Kh8 {[%clk 0:00:13]}  Qc8+ {[%clk 0:00:19]} 74. Kg7 {[%clk 0:00:13]}  Qd7+ {[%clk 0:00:20]} 75. Kh8 {[%clk 0:00:13]}  Qe8+ {[%clk 0:00:20]} 76. Kg7 {[%clk 0:00:14]}  Qe7+ {[%clk 0:00:20]} 77. Kh8 {[%clk 0:00:12]}  Qf6+ {[%clk 0:00:20]} 78. Kh7 {[%clk 0:00:13]}  Qf7+ {[%clk 0:00:20]} 79. Kh8 {[%clk 0:00:13]}  Qf8+ {[%clk 0:00:20]} 80. Kh7 {[%clk 0:00:13]}  Kd4 {[%clk 0:00:20]} 81. Kg6 {[%clk 0:00:12]}  Qh8 {[%clk 0:00:21]} 82. h7 {[%clk 0:00:12]}  Ke5 {[%clk 0:00:21]} 83. Kh6 {[%clk 0:00:13]}  Kf5 {[%clk 0:00:21]} 84. Kh5 {[%clk 0:00:14]}  Qxh7# {[%clk 0:00:22]} 0-1


[Site "https://www.chess.com"]

[Event "Titled Tuesday Blitz May 31 Early 2022"]
[White "Secer, Ata"]
[Black "Bluebaum, Matthias"]
[WhiteFideId "6303293"]
[BlackFideId "24651516"]
[WhiteElo "2282"]
[BlackElo "2556"]
[Result "0-1"]
[Round "02"]
[TimeControl "180+1"]
[Date "2022.05.31"]
[WhiteClock "0:00:13"]
[BlackClock "0:00:38"]

1. e4 {[%clk 0:03:00]}  c6 {[%clk 0:03:00]} 2. d4 {[%clk 0:03:00]}  d5 {[%clk 0:02:59]} 3. Nd2 {[%clk 0:03:01]}  dxe4 {[%clk 0:02:59]} 4. Nxe4 {[%clk 0:03:02]}  Nf6 {[%clk 0:03:00]} 5. Nxf6+ {[%clk 0:03:02]}  exf6 {[%clk 0:03:01]} 6. c3 {[%clk 0:03:02]}  Bd6 {[%clk 0:03:01]} 7. Bd3 {[%clk 0:03:03]}  O-O {[%clk 0:03:02]} 8. Ne2 {[%clk 0:03:04]}  Re8 {[%clk 0:03:02]} 9. O-O {[%clk 0:03:04]}  Nd7 {[%clk 0:03:03]} 10. Bf4 {[%clk 0:03:04]}  Nf8 {[%clk 0:03:02]} 11. Bxd6 {[%clk 0:03:04]}  Qxd6 {[%clk 0:03:03]} 12. Qd2 {[%clk 0:03:05]}  Ne6 {[%clk 0:03:00]} 13. Rfe1 {[%clk 0:03:02]}  g6 {[%clk 0:03:00]} 14. Rad1 {[%clk 0:03:01]}  Bd7 {[%clk 0:03:00]} 15. Bc4 {[%clk 0:02:56]}  Re7 {[%clk 0:02:58]} 16. d5 {[%clk 0:02:56]}  cxd5 {[%clk 0:02:48]} 17. Qxd5 {[%clk 0:02:55]}  Qc7 {[%clk 0:02:47]} 18. Qd6 {[%clk 0:02:46]}  Rae8 {[%clk 0:02:19]} 19. Qxc7 {[%clk 0:02:06]}  Nxc7 {[%clk 0:02:20]} 20. Kf1 {[%clk 0:02:06]}  Ba4 {[%clk 0:01:57]} 21. b3 {[%clk 0:01:59]}  Bb5 {[%clk 0:01:58]} 22. Bxb5 {[%clk 0:01:51]}  Nxb5 {[%clk 0:01:59]} 23. c4 {[%clk 0:01:50]}  Nc7 {[%clk 0:01:56]} 24. Nc3 {[%clk 0:01:48]}  Rxe1+ {[%clk 0:01:55]} 25. Rxe1 {[%clk 0:01:49]}  Rxe1+ {[%clk 0:01:55]} 26. Kxe1 {[%clk 0:01:50]}  f5 {[%clk 0:01:56]} 27. Kd2 {[%clk 0:01:45]}  Kf8 {[%clk 0:01:55]} 28. Kd3 {[%clk 0:01:44]}  Ne6 {[%clk 0:01:55]} 29. g3 {[%clk 0:01:39]}  Ke7 {[%clk 0:01:52]} 30. b4 {[%clk 0:01:35]}  Kd7 {[%clk 0:01:46]} 31. c5 {[%clk 0:01:31]}  f4 {[%clk 0:01:44]} 32. Kc4 {[%clk 0:01:28]}  fxg3 {[%clk 0:01:43]} 33. hxg3 {[%clk 0:01:29]}  h5 {[%clk 0:01:43]} 34. Nd5 {[%clk 0:01:26]}  Ng5 {[%clk 0:01:36]} 35. Kd4 {[%clk 0:01:08]}  Ke6 {[%clk 0:01:29]} 36. Nc7+ {[%clk 0:01:00]}  Kd7 {[%clk 0:01:29]} 37. Nb5 {[%clk 0:00:58]}  a6 {[%clk 0:01:20]} 38. Nd6 {[%clk 0:00:56]}  Kc6 {[%clk 0:01:20]} 39. Ke5 {[%clk 0:00:46]}  b6 {[%clk 0:01:06]} 40. cxb6 {[%clk 0:00:28]}  Nf3+ {[%clk 0:00:43]} 41. Kf4 {[%clk 0:00:28]}  Kxd6 {[%clk 0:00:44]} 42. Kxf3 {[%clk 0:00:29]}  Kc6 {[%clk 0:00:45]} 43. a4 {[%clk 0:00:27]}  Kxb6 {[%clk 0:00:44]} 44. Ke4 {[%clk 0:00:27]}  f6 {[%clk 0:00:41]} 45. Kd5 {[%clk 0:00:28]}  g5 {[%clk 0:00:41]} 46. Ke4 {[%clk 0:00:25]}  Kc6 {[%clk 0:00:41]} 47. Kf5 {[%clk 0:00:23]}  Kd5 {[%clk 0:00:38]} 48. f4 {[%clk 0:00:20]}  g4 {[%clk 0:00:37]} 49. Kxf6 {[%clk 0:00:11]}  h4 {[%clk 0:00:38]} 50. gxh4 {[%clk 0:00:12]}  g3 {[%clk 0:00:39]} 51. h5 {[%clk 0:00:13]}  g2 {[%clk 0:00:39]} 52. h6 {[%clk 0:00:14]}  g1=Q {[%clk 0:00:40]} 53. h7 {[%clk 0:00:14]}  Qd4+ {[%clk 0:00:40]} 54. Kf7 {[%clk 0:00:15]}  Qxf4+ {[%clk 0:00:37]} 55. Kg8 {[%clk 0:00:15]}  Qg5+ {[%clk 0:00:37]} 56. Kf7 {[%clk 0:00:15]}  Qf5+ {[%clk 0:00:37]} 57. Kg8 {[%clk 0:00:15]}  Qg6+ {[%clk 0:00:37]} 58. Kh8 {[%clk 0:00:15]}  Ke6 {[%clk 0:00:37]} 59. b5 {[%clk 0:00:14]}  Kf7 {[%clk 0:00:37]} 60. bxa6 {[%clk 0:00:13]}  Qg7# {[%clk 0:00:38]} 0-1


[Site "https://www.chess.com"]

[Event "Titled Tuesday Blitz May 31 Early 2022"]
[White "Sirosh, Ilja"]
[Black "Aravindh, Chithambaram VR."]
[WhiteFideId "4500458"]
[BlackFideId "5072786"]
[WhiteElo "2241"]
[BlackElo "2561"]
[Result "0-1"]
[Round "02"]
[TimeControl "180+1"]
[Date "2022.05.31"]
[WhiteClock "0:00:20"]
[BlackClock "0:00:03"]

1. e4 {[%clk 0:03:00]}  e6 {[%clk 0:02:55]} 2. d4 {[%clk 0:02:57]}  d5 {[%clk 0:02:55]} 3. Nc3 {[%clk 0:02:57]}  Nf6 {[%clk 0:02:54]} 4. e5 {[%clk 0:02:57]}  Nfd7 {[%clk 0:02:54]} 5. f4 {[%clk 0:02:58]}  c5 {[%clk 0:02:55]} 6. Nf3 {[%clk 0:02:57]}  a6 {[%clk 0:02:54]} 7. a3 {[%clk 0:02:53]}  b5 {[%clk 0:02:54]} 8. Be3 {[%clk 0:02:48]}  Nc6 {[%clk 0:02:53]} 9. dxc5 {[%clk 0:02:48]}  Bxc5 {[%clk 0:02:51]} 10. Bxc5 {[%clk 0:02:48]}  Nxc5 {[%clk 0:02:52]} 11. b4 {[%clk 0:02:48]}  Nd7 {[%clk 0:02:49]} 12. Qd2 {[%clk 0:02:48]}  Bb7 {[%clk 0:02:46]} 13. Bd3 {[%clk 0:02:45]}  O-O {[%clk 0:02:39]} 14. O-O {[%clk 0:02:37]}  g6 {[%clk 0:02:23]} 15. Kh1 {[%clk 0:02:35]}  Rc8 {[%clk 0:02:22]} 16. Ne2 {[%clk 0:02:35]}  Nb6 {[%clk 0:02:13]} 17. Ned4 {[%clk 0:02:34]}  Nc4 {[%clk 0:02:13]} 18. Qf2 {[%clk 0:02:33]}  Ne7 {[%clk 0:02:04]} 19. g4 {[%clk 0:02:07]}  Nc6 {[%clk 0:01:53]} 20. Nxc6 {[%clk 0:01:57]}  Bxc6 {[%clk 0:01:50]} 21. Nd4 {[%clk 0:01:53]}  Bd7 {[%clk 0:01:38]} 22. Rae1 {[%clk 0:01:36]}  f6 {[%clk 0:01:26]} 23. exf6 {[%clk 0:01:33]}  Qxf6 {[%clk 0:01:27]} 24. g5 {[%clk 0:01:33]}  Qf7 {[%clk 0:01:23]} 25. Qg3 {[%clk 0:01:05]}  Nd6 {[%clk 0:01:15]} 26. h4 {[%clk 0:01:04]}  Rc3 {[%clk 0:01:08]} 27. h5 {[%clk 0:01:01]}  Ne4 {[%clk 0:01:01]} 28. Qg2 {[%clk 0:01:00]}  Qg7 {[%clk 0:00:56]} 29. Ne2 {[%clk 0:00:48]}  Rxa3 {[%clk 0:00:54]} 30. h6 {[%clk 0:00:47]}  Qe7 {[%clk 0:00:39]} 31. Bxe4 {[%clk 0:00:46]}  dxe4 {[%clk 0:00:40]} 32. Qxe4 {[%clk 0:00:47]}  Qd6 {[%clk 0:00:28]} 33. Qe5 {[%clk 0:00:40]}  Bc6+ {[%clk 0:00:22]} 34. Kh2 {[%clk 0:00:37]}  Qxe5 {[%clk 0:00:15]} 35. fxe5 {[%clk 0:00:38]}  Rxf1 {[%clk 0:00:06]} 36. Rxf1 {[%clk 0:00:38]}  Re3 {[%clk 0:00:06]} 37. Nd4 {[%clk 0:00:36]}  Bd5 {[%clk 0:00:06]} 38. Ra1 {[%clk 0:00:30]}  Rxe5 {[%clk 0:00:07]} 39. Rxa6 {[%clk 0:00:31]}  Rxg5 {[%clk 0:00:07]} 40. Nxe6 {[%clk 0:00:27]}  Bxe6 {[%clk 0:00:04]} 41. Rxe6 {[%clk 0:00:28]}  Rh5+ {[%clk 0:00:04]} 42. Kg3 {[%clk 0:00:28]}  Rxh6 {[%clk 0:00:04]} 43. Re5 {[%clk 0:00:27]}  Rh5 {[%clk 0:00:02]} 44. Rxh5 {[%clk 0:00:18]}  gxh5 {[%clk 0:00:03]} 45. c4 {[%clk 0:00:19]}  bxc4 {[%clk 0:00:04]} 46. Kf4 {[%clk 0:00:19]}  Kf7 {[%clk 0:00:03]} 47. b5 {[%clk 0:00:20]}  Ke6 {[%clk 0:00:03]} 0-1


[Site "https://www.chess.com"]

[Event "Titled Tuesday Blitz May 31 Early 2022"]
[White "Sjugirov, Sanan"]
[Black "Prokofiev, Valentyn"]
[WhiteFideId "4189302"]
[BlackFideId "14160161"]
[WhiteElo "2602"]
[BlackElo "2174"]
[Result "1-0"]
[Round "02"]
[TimeControl "180+1"]
[Date "2022.05.31"]
[WhiteClock "0:00:14"]
[BlackClock "0:00:03"]

1. e4 {[%clk 0:02:58]}  e5 {[%clk 0:03:00]} 2. Nf3 {[%clk 0:02:58]}  Nc6 {[%clk 0:03:01]} 3. Bb5 {[%clk 0:02:58]}  a6 {[%clk 0:03:01]} 4. Ba4 {[%clk 0:02:57]}  Nf6 {[%clk 0:03:01]} 5. O-O {[%clk 0:02:57]}  Nxe4 {[%clk 0:03:02]} 6. d4 {[%clk 0:02:57]}  Be7 {[%clk 0:03:02]} 7. Re1 {[%clk 0:02:47]}  b5 {[%clk 0:03:00]} 8. Bb3 {[%clk 0:02:44]}  d5 {[%clk 0:03:00]} 9. dxe5 {[%clk 0:02:40]}  Be6 {[%clk 0:03:00]} 10. Nbd2 {[%clk 0:02:33]}  Nc5 {[%clk 0:02:55]} 11. Nf1 {[%clk 0:02:25]}  O-O {[%clk 0:02:51]} 12. Ng3 {[%clk 0:02:20]}  Qd7 {[%clk 0:02:41]} 13. Be3 {[%clk 0:02:02]}  Rad8 {[%clk 0:02:23]} 14. c3 {[%clk 0:01:59]}  Na5 {[%clk 0:01:49]} 15. Bc2 {[%clk 0:01:56]}  Nc4 {[%clk 0:01:49]} 16. Bc1 {[%clk 0:01:56]}  c6 {[%clk 0:01:48]} 17. b3 {[%clk 0:01:55]}  Nb6 {[%clk 0:01:46]} 18. Be3 {[%clk 0:01:55]}  Qc7 {[%clk 0:01:36]} 19. Ng5 {[%clk 0:01:49]}  g6 {[%clk 0:01:24]} 20. Nf3 {[%clk 0:01:37]}  Nbd7 {[%clk 0:01:09]} 21. h3 {[%clk 0:01:34]}  Rfe8 {[%clk 0:01:07]} 22. Bf4 {[%clk 0:01:29]}  Nf8 {[%clk 0:00:55]} 23. Nd4 {[%clk 0:01:28]}  Ncd7 {[%clk 0:00:51]} 24. Qd2 {[%clk 0:01:19]}  c5 {[%clk 0:00:50]} 25. Nf3 {[%clk 0:01:20]}  Nb8 {[%clk 0:00:48]} 26. Bg5 {[%clk 0:01:19]}  Nc6 {[%clk 0:00:46]} 27. Bxe7 {[%clk 0:01:18]}  Qxe7 {[%clk 0:00:47]} 28. Qh6 {[%clk 0:01:17]}  d4 {[%clk 0:00:46]} 29. cxd4 {[%clk 0:01:11]}  Nxd4 {[%clk 0:00:46]} 30. Nxd4 {[%clk 0:01:10]}  Rxd4 {[%clk 0:00:44]} 31. Ne4 {[%clk 0:01:06]}  Red8 {[%clk 0:00:44]} 32. Nf6+ {[%clk 0:01:02]}  Kh8 {[%clk 0:00:45]} 33. Re4 {[%clk 0:00:51]}  Rxe4 {[%clk 0:00:38]} 34. Bxe4 {[%clk 0:00:52]}  Bxb3 {[%clk 0:00:34]} 35. f4 {[%clk 0:00:41]}  Be6 {[%clk 0:00:32]} 36. h4 {[%clk 0:00:40]}  c4 {[%clk 0:00:29]} 37. h5 {[%clk 0:00:40]}  b4 {[%clk 0:00:20]} 38. Kh2 {[%clk 0:00:30]}  c3 {[%clk 0:00:18]} 39. Rh1 {[%clk 0:00:27]}  Bf5 {[%clk 0:00:09]} 40. Bxf5 {[%clk 0:00:27]}  gxf5 {[%clk 0:00:10]} 41. Qg5 {[%clk 0:00:20]}  Ne6 {[%clk 0:00:10]} 42. Qxf5 {[%clk 0:00:20]}  Nf8 {[%clk 0:00:07]} 43. Re1 {[%clk 0:00:20]}  a5 {[%clk 0:00:06]} 44. Re3 {[%clk 0:00:19]}  a4 {[%clk 0:00:02]} 45. Rg3 {[%clk 0:00:19]}  Ng6 {[%clk 0:00:03]} 46. hxg6 {[%clk 0:00:17]}  fxg6 {[%clk 0:00:04]} 47. Qe4 {[%clk 0:00:16]}  b3 {[%clk 0:00:03]} 48. axb3 {[%clk 0:00:16]}  axb3 {[%clk 0:00:04]} 49. Rxc3 {[%clk 0:00:16]}  b2 {[%clk 0:00:05]} 50. Rb3 {[%clk 0:00:16]}  Rd2 {[%clk 0:00:02]} 51. Rb8+ {[%clk 0:00:14]}  Kg7 {[%clk 0:00:03]} 52. Rb7 {[%clk 0:00:14]} 1-0


[Site "https://www.chess.com"]

[Event "Titled Tuesday Blitz May 31 Early 2022"]
[White "Suleymanli, Suleyman"]
[Black "Riehle, Marco"]
[WhiteFideId "13416375"]
[BlackFideId "12904392"]
[WhiteElo "1598"]
[BlackElo "2462"]
[Result "1-0"]
[Round "02"]
[TimeControl "180+1"]
[Date "2022.06.01"]
[WhiteClock "0:00:13"]
[BlackClock "0:00:09"]

1. Nf3 {[%clk 0:03:00]}  c5 {[%clk 0:02:58]} 2. g3 {[%clk 0:03:01]}  Nc6 {[%clk 0:02:52]} 3. d4 {[%clk 0:03:01]}  cxd4 {[%clk 0:02:40]} 4. Nxd4 {[%clk 0:03:02]}  e5 {[%clk 0:02:40]} 5. Nxc6 {[%clk 0:03:01]}  dxc6 {[%clk 0:02:40]} 6. Qxd8+ {[%clk 0:03:01]}  Kxd8 {[%clk 0:02:41]} 7. Bg2 {[%clk 0:03:01]}  Kc7 {[%clk 0:02:41]} 8. O-O {[%clk 0:03:02]}  Bc5 {[%clk 0:02:40]} 9. Nd2 {[%clk 0:03:02]}  f6 {[%clk 0:02:39]} 10. Ne4 {[%clk 0:02:58]}  Be7 {[%clk 0:02:30]} 11. Be3 {[%clk 0:02:57]}  b6 {[%clk 0:02:29]} 12. Nc3 {[%clk 0:02:54]}  Be6 {[%clk 0:02:25]} 13. f4 {[%clk 0:02:47]}  exf4 {[%clk 0:02:22]} 14. Bxf4+ {[%clk 0:02:47]}  Bd6 {[%clk 0:02:22]} 15. Nb5+ {[%clk 0:02:45]}  cxb5 {[%clk 0:02:22]} 16. Bxd6+ {[%clk 0:02:42]}  Kxd6 {[%clk 0:02:22]} 17. Bxa8 {[%clk 0:02:43]}  Ne7 {[%clk 0:02:22]} 18. Bf3 {[%clk 0:02:41]}  Nf5 {[%clk 0:01:52]} 19. Rad1+ {[%clk 0:02:34]}  Ke7 {[%clk 0:01:52]} 20. Kf2 {[%clk 0:02:33]}  b4 {[%clk 0:01:46]} 21. Rd3 {[%clk 0:02:29]}  Rc8 {[%clk 0:01:35]} 22. Rd2 {[%clk 0:02:21]}  Nd6 {[%clk 0:01:31]} 23. b3 {[%clk 0:02:09]}  a5 {[%clk 0:01:30]} 24. Rfd1 {[%clk 0:02:08]}  Nb5 {[%clk 0:01:26]} 25. Ra1 {[%clk 0:01:51]}  Nc3 {[%clk 0:01:21]} 26. Rd3 {[%clk 0:01:35]}  Bf5 {[%clk 0:01:19]} 27. Re3+ {[%clk 0:01:35]}  Kf7 {[%clk 0:01:14]} 28. a3 {[%clk 0:01:33]}  Bxc2 {[%clk 0:01:12]} 29. axb4 {[%clk 0:01:32]}  Nd1+ {[%clk 0:01:06]} 30. Rxd1 {[%clk 0:01:31]}  Bxd1 {[%clk 0:01:07]} 31. bxa5 {[%clk 0:01:30]}  bxa5 {[%clk 0:01:08]} 32. Bd5+ {[%clk 0:01:30]}  Kf8 {[%clk 0:01:01]} 33. Ke1 {[%clk 0:01:10]}  Bc2 {[%clk 0:00:57]} 34. Kd2 {[%clk 0:00:53]}  Bg6 {[%clk 0:00:56]} 35. Be6 {[%clk 0:00:50]}  Rc2+ {[%clk 0:00:54]} 36. Ke1 {[%clk 0:00:48]}  Ra2 {[%clk 0:00:54]} 37. Bc4 {[%clk 0:00:46]}  a4 {[%clk 0:00:50]} 38. bxa4 {[%clk 0:00:45]}  Rxa4 {[%clk 0:00:51]} 39. Bd3 {[%clk 0:00:44]}  Bxd3 {[%clk 0:00:47]} 40. Rxd3 {[%clk 0:00:45]}  Ra2 {[%clk 0:00:43]} 41. Kf2 {[%clk 0:00:46]}  Kf7 {[%clk 0:00:43]} 42. Kf3 {[%clk 0:00:46]}  Kg6 {[%clk 0:00:43]} 43. h4 {[%clk 0:00:46]}  h5 {[%clk 0:00:43]} 44. e3 {[%clk 0:00:45]}  Ra5 {[%clk 0:00:44]} 45. Rd4 {[%clk 0:00:45]}  Kf5 {[%clk 0:00:42]} 46. Rf4+ {[%clk 0:00:45]}  Ke6 {[%clk 0:00:42]} 47. Rb4 {[%clk 0:00:43]}  g5 {[%clk 0:00:40]} 48. Rb6+ {[%clk 0:00:37]}  Kf5 {[%clk 0:00:40]} 49. e4+ {[%clk 0:00:37]}  Kg6 {[%clk 0:00:36]} 50. hxg5 {[%clk 0:00:37]}  Kxg5 {[%clk 0:00:36]} 51. Rb3 {[%clk 0:00:35]}  Rc5 {[%clk 0:00:34]} 52. Rd3 {[%clk 0:00:30]}  Kg6 {[%clk 0:00:33]} 53. Kf4 {[%clk 0:00:30]}  Rc1 {[%clk 0:00:33]} 54. Rf3 {[%clk 0:00:29]}  Re1 {[%clk 0:00:32]} 55. Rf2 {[%clk 0:00:29]}  Rh1 {[%clk 0:00:32]} 56. Rf3 {[%clk 0:00:27]}  Kf7 {[%clk 0:00:32]} 57. e5 {[%clk 0:00:26]}  Kg6 {[%clk 0:00:28]} 58. e6 {[%clk 0:00:18]}  Ra1 {[%clk 0:00:22]} 59. Re3 {[%clk 0:00:18]}  Ra8 {[%clk 0:00:21]} 60. g4 {[%clk 0:00:17]}  Ra4+ {[%clk 0:00:19]} 61. Kg3 {[%clk 0:00:15]}  Ra8 {[%clk 0:00:16]} 62. gxh5+ {[%clk 0:00:13]}  Kxh5 {[%clk 0:00:17]} 63. Kf4 {[%clk 0:00:13]}  Kg6 {[%clk 0:00:17]} 64. Rg3+ {[%clk 0:00:14]}  Kh7 {[%clk 0:00:17]} 65. Kf5 {[%clk 0:00:14]}  Ra1 {[%clk 0:00:14]} 66. Kxf6 {[%clk 0:00:14]}  Rf1+ {[%clk 0:00:14]} 67. Ke7 {[%clk 0:00:14]}  Rd1 {[%clk 0:00:13]} 68. Kf7 {[%clk 0:00:14]}  Rf1+ {[%clk 0:00:13]} 69. Ke8 {[%clk 0:00:15]}  Rd1 {[%clk 0:00:12]} 70. e7 {[%clk 0:00:15]}  Kh8 {[%clk 0:00:12]} 71. Rg4 {[%clk 0:00:15]}  Kh7 {[%clk 0:00:12]} 72. Kf7 {[%clk 0:00:15]}  Rf1+ {[%clk 0:00:12]} 73. Ke6 {[%clk 0:00:15]}  Re1+ {[%clk 0:00:12]} 74. Kf6 {[%clk 0:00:16]}  Re2 {[%clk 0:00:12]} 75. Rg5 {[%clk 0:00:13]}  Rf2+ {[%clk 0:00:12]} 76. Ke6 {[%clk 0:00:13]}  Kh6 {[%clk 0:00:11]} 77. Re5 {[%clk 0:00:13]}  Rg2 {[%clk 0:00:10]} 78. e8=Q {[%clk 0:00:13]}  Kg7 {[%clk 0:00:10]} 79. Qf7+ {[%clk 0:00:13]}  Kh8 {[%clk 0:00:09]} 80. Rh5# {[%clk 0:00:13]} 1-0


[Site "https://www.chess.com"]

[Event "Titled Tuesday Blitz May 31 Early 2022"]
[White "Svane, Frederik"]
[Black "Kalashian, David"]
[WhiteFideId "12923044"]
[BlackFideId "13302418"]
[WhiteElo "2459"]
[BlackElo "2490"]
[Result "1-0"]
[Round "02"]
[TimeControl "180+1"]
[Date "2022.05.31"]
[WhiteClock "0:00:41"]
[BlackClock "0:00:04"]

1. c4 {[%clk 0:03:00]}  Nf6 {[%clk 0:02:59]} 2. Nc3 {[%clk 0:03:00]}  g6 {[%clk 0:02:59]} 3. g3 {[%clk 0:02:59]}  Bg7 {[%clk 0:02:59]} 4. Bg2 {[%clk 0:03:00]}  O-O {[%clk 0:02:58]} 5. d3 {[%clk 0:03:01]}  c6 {[%clk 0:02:58]} 6. e4 {[%clk 0:03:01]}  d6 {[%clk 0:02:46]} 7. Nge2 {[%clk 0:03:01]}  c5 {[%clk 0:02:33]} 8. O-O {[%clk 0:03:00]}  Nc6 {[%clk 0:02:34]} 9. Be3 {[%clk 0:03:00]}  a6 {[%clk 0:02:33]} 10. h3 {[%clk 0:02:59]}  Rb8 {[%clk 0:02:33]} 11. a4 {[%clk 0:02:59]}  Ne8 {[%clk 0:02:31]} 12. d4 {[%clk 0:02:57]}  cxd4 {[%clk 0:02:27]} 13. Nxd4 {[%clk 0:02:58]}  Bd7 {[%clk 0:02:28]} 14. Qd2 {[%clk 0:02:58]}  Rc8 {[%clk 0:02:24]} 15. b3 {[%clk 0:02:57]}  Nf6 {[%clk 0:02:13]} 16. Rad1 {[%clk 0:02:55]}  Re8 {[%clk 0:02:12]} 17. Nd5 {[%clk 0:02:37]}  Nxd5 {[%clk 0:02:05]} 18. Nxc6 {[%clk 0:02:24]}  bxc6 {[%clk 0:01:41]} 19. exd5 {[%clk 0:02:24]}  c5 {[%clk 0:01:37]} 20. g4 {[%clk 0:02:23]}  Rb8 {[%clk 0:01:36]} 21. Rb1 {[%clk 0:02:23]}  Qc7 {[%clk 0:01:27]} 22. Rfe1 {[%clk 0:02:21]}  Rb7 {[%clk 0:01:22]} 23. Be4 {[%clk 0:02:20]}  Reb8 {[%clk 0:01:13]} 24. Bc2 {[%clk 0:02:20]}  e6 {[%clk 0:01:08]} 25. dxe6 {[%clk 0:02:15]}  Bxe6 {[%clk 0:01:07]} 26. Rbd1 {[%clk 0:02:06]}  Rb6 {[%clk 0:01:03]} 27. a5 {[%clk 0:02:05]}  R6b7 {[%clk 0:00:42]} 28. Qxd6 {[%clk 0:01:40]}  Qxa5 {[%clk 0:00:39]} 29. Bxc5 {[%clk 0:01:37]}  Bf8 {[%clk 0:00:33]} 30. Qf4 {[%clk 0:01:01]}  Qxc5 {[%clk 0:00:27]} 31. h4 {[%clk 0:00:58]}  a5 {[%clk 0:00:23]} 32. h5 {[%clk 0:00:58]}  a4 {[%clk 0:00:23]} 33. hxg6 {[%clk 0:00:56]}  hxg6 {[%clk 0:00:19]} 34. Bxg6 {[%clk 0:00:56]}  axb3 {[%clk 0:00:14]} 35. Be4 {[%clk 0:00:54]}  b2 {[%clk 0:00:09]} 36. Qh2 {[%clk 0:00:49]}  Bg7 {[%clk 0:00:06]} 37. Bxb7 {[%clk 0:00:42]}  b1=Q {[%clk 0:00:03]} 38. Rxb1 {[%clk 0:00:41]}  Qxc4 {[%clk 0:00:03]} 39. Qxb8+ {[%clk 0:00:41]}  Kh7 {[%clk 0:00:03]} 40. Be4+ {[%clk 0:00:41]}  Kh6 {[%clk 0:00:04]} 41. Qf4# {[%clk 0:00:41]} 1-0


[Site "https://www.chess.com"]